fUST/lending_fUST_20250520
["ID","MTS","AMOUNT","RATE_DAILY","PERIOD"]
[361739236,1747741832904,-430.0,0.00016438,2]
[361739238,1747741832913,-430.0,0.00016438,2]
[361739240,1747741832923,-430.0,0.00016438,2]
[361739242,1747741832933,-430.0,0.00016438,2]
[361739245,1747741832943,-430.0,0.00016438,2]
[361739247,1747741832953,-325.63347429,0.00016438,2]
[361739248,1747741832963,-430.0,0.00016438,2]
[361739250,1747741832972,-430.0,0.00016438,2]
[361739252,1747741832982,-285.91352876,0.00016438,2]
[361739254,1747741832992,-430.0,0.00016438,2]
[361739257,1747741833002,-168.86103786,0.00016438,2]
[361739258,1747741833011,-1096.01,0.00016438,2]
[361739261,1747741833020,-1304.94,0.00016438,2]
[361739263,1747741833032,-2697.58,0.00016438,2]
[361739264,1747741833044,-491.7,0.00016438,2]
[361739267,1747741833054,-431.68,0.00016438,2]
[361739268,1747741833064,-430.0,0.00016438,2]
[361739270,1747741833073,-430.0,0.00016438,2]
[361739272,1747741833084,-430.0,0.00016438,2]
[361739274,1747741833093,-1026.35,0.00016438,2]
[361739276,1747741833103,-489.73,0.00016438,2]
[361739278,1747741833114,-614.69,0.00016438,2]
[361739280,1747741833123,-430.0,0.00016438,2]
[361739282,1747741833133,-1052.22,0.00016438,2]
[361739284,1747741833143,-430.0,0.00016438,2]
[361739286,1747741833152,-948.04,0.00016438,2]
[361739288,1747741833161,-430.0,0.00016438,2]
[361739290,1747741833170,-537.58,0.00016438,2]
[361739292,1747741833179,-430.0,0.00016438,2]
[361739294,1747741833189,-772.52,0.00016438,2]
[361739296,1747741833198,-430.0,0.00016438,2]
[361739298,1747741833209,-367.07235075,0.00016438,2]
[361739300,1747741833218,-430.0,0.00016438,2]
[361739302,1747741833227,-430.0,0.00016438,2]
[361739304,1747741833237,-1552.53,0.00016438,2]
[361739306,1747741833246,-430.0,0.00016438,2]
[361739308,1747741833256,-467.25,0.00016438,2]
[361739310,1747741833265,-430.0,0.00016438,2]
[361739312,1747741833275,-472.64,0.00016438,2]
[361739314,1747741833285,-430.0,0.00016438,2]
[361739316,1747741833295,-430.0,0.00016438,2]
[361739318,1747741833305,-2951.51,0.00016438,2]
[361739320,1747741833315,-430.0,0.00016438,2]
[361739322,1747741833325,-430.0,0.00016438,2]
[361739324,1747741833335,-1044.44,0.00016438,2]
[361739326,1747741833345,-825.63,0.00016438,2]
[361739328,1747741833356,-430.0,0.00016438,2]
[361739330,1747741833365,-430.0,0.00016438,2]
[361739332,1747741833375,-430.0,0.00016438,2]
[361739334,1747741833386,-430.0,0.00016438,2]
[361739336,1747741833396,-634.64,0.00016438,2]
[361739338,1747741833405,-196.43663028,0.00016438,2]
[361739340,1747741833415,-430.0,0.00016438,2]
[361739342,1747741833425,-513.09,0.00016438,2]
[361739344,1747741833436,-430.0,0.00016438,2]
[361739346,1747741833445,-430.0,0.00016438,2]
[361739348,1747741833456,-849.91,0.00016438,2]
[361739350,1747741833466,-3854.45,0.00016438,2]
[361739352,1747741833476,-430.0,0.00016438,2]
[361739354,1747741833487,-1291.35,0.00016438,2]
[361739356,1747741833496,-430.0,0.00016438,2]
[361739358,1747741833506,-574.37,0.00016438,2]
[361739360,1747741833516,-430.0,0.00016438,2]
[361739362,1747741833528,-722.59,0.00016438,2]
[361739364,1747741833538,-430.0,0.00016438,2]
[361739367,1747741833549,-430.0,0.00016438,2]
[361739369,1747741833559,-430.0,0.00016438,2]
[361739371,1747741833569,-433.58876216,0.00016438,2]
[361739373,1747741833579,-585.94,0.00016438,2]
[361739375,1747741833589,-480.71,0.00016438,2]
[361739377,1747741833599,-430.0,0.00016438,2]
[361739379,1747741833608,-430.0,0.00016438,2]
[361739381,1747741833619,-430.0,0.00016438,2]
[361739382,1747741833629,-174.89,0.00016702,3]
[361739384,1747741833640,-524.69,0.00016702,3]
[361739386,1747741833650,-430.0,0.00016712,2]
[361739388,1747741833661,-430.0,0.00016712,2]
[361739390,1747741833671,-430.0,0.00016712,2]
[361739392,1747741833680,-430.0,0.00016712,2]
[361739394,1747741833690,-504.75914004,0.00016712,2]
[361739396,1747741833700,-430.0,0.00016712,2]
[361739398,1747741833709,-430.0,0.00016712,2]
[361739400,1747741833720,-523.25865233,0.00016712,2]
[361739402,1747741833731,-349.24,0.00016712,2]
[361739404,1747741833741,-430.0,0.00016712,2]
[361739406,1747741833751,-430.0,0.00016712,2]
[361739408,1747741833761,-430.0,0.00016712,2]
[361739410,1747741833771,-430.0,0.00016712,2]
[361739412,1747741833781,-430.0,0.00016712,2]
[361739414,1747741833791,-430.0,0.00016712,2]
[361739416,1747741833801,-1096.01,0.00016712,2]
[361739417,1747741833814,-1304.94,0.00016712,2]
[361739418,1747741833824,-2697.58,0.00016712,2]
[361739419,1747741833834,-491.7,0.00016712,2]
[361739420,1747741833843,-431.68,0.00016712,2]
[361739421,1747741833853,-430.0,0.00016712,2]
[361739422,1747741833864,-430.0,0.00016712,2]
[361739423,1747741833873,-430.0,0.00016712,2]
[361739424,1747741833883,-1026.35,0.00016712,2]
[361739425,1747741833894,-489.73,0.00016712,2]
[361739426,1747741833904,-614.69,0.00016712,2]
[361739427,1747741833914,-430.0,0.00016712,2]
[361739428,1747741833924,-1052.22,0.00016712,2]
[361739429,1747741833934,-430.0,0.00016712,2]
[361739430,1747741833944,-948.04,0.00016712,2]
[361739431,1747741833954,-430.0,0.00016712,2]
[361739432,1747741833963,-537.58,0.00016712,2]
[361739433,1747741833973,-430.0,0.00016712,2]
[361739434,1747741833983,-772.52,0.00016712,2]
[361739435,1747741833993,-430.0,0.00016712,2]
[361739436,1747741834003,-430.0,0.00016712,2]
[361739437,1747741834013,-430.0,0.00016712,2]
[361739438,1747741834023,-1552.53,0.00016712,2]
[361739439,1747741834036,-430.0,0.00016712,2]
[361739440,1747741834046,-467.25,0.00016712,2]
[361739441,1747741834056,-430.0,0.00016712,2]
[361739442,1747741834065,-472.64,0.00016712,2]
[361739443,1747741834076,-430.0,0.00016712,2]
[361739444,1747741834086,-430.0,0.00016712,2]
[361739445,1747741834096,-2951.51,0.00016712,2]
[361739446,1747741834106,-430.0,0.00016712,2]
[361739447,1747741834118,-430.0,0.00016712,2]
[361739448,1747741834128,-1044.44,0.00016712,2]
[361739449,1747741834138,-825.63,0.00016712,2]
[361739450,1747741834148,-430.0,0.00016712,2]
[361739451,1747741834157,-430.0,0.00016712,2]
[361739452,1747741834167,-430.0,0.00016712,2]
[361739453,1747741834176,-430.0,0.00016712,2]
[361739455,1747741834185,-634.64,0.00016712,2]
[361739456,1747741834195,-430.0,0.00016712,2]
[361739457,1747741834205,-513.09,0.00016712,2]
[361739459,1747741834214,-258.80834313,0.00016712,2]
[361739461,1747741834224,-430.0,0.00016712,2]
[361739463,1747741834233,-849.91,0.00016712,2]
[361739465,1747741834242,-3854.45,0.00016712,2]
[361739467,1747741834252,-430.0,0.00016712,2]
[361739468,1747741834262,-1291.35,0.00016712,2]
[361739470,1747741834272,-430.0,0.00016712,2]
[361739473,1747741834282,-574.37,0.00016712,2]
[361739475,1747741834292,-430.0,0.00016712,2]
[361739476,1747741834301,-722.59,0.00016712,2]
[361739478,1747741834311,-430.0,0.00016712,2]
[361739480,1747741834321,-430.0,0.00016712,2]
[361739482,1747741834330,-430.0,0.00016712,2]
[361739484,1747741834341,-585.94,0.00016712,2]
[361739486,1747741834351,-480.71,0.00016712,2]
[361739488,1747741834360,-430.0,0.00016712,2]
[361739490,1747741834369,-430.0,0.00016712,2]
[361739492,1747741834379,-164.054305,0.00016723,3]
[361739494,1747741834389,-10696.09944436,0.000169,2]
[361739496,1747741834398,-438.26609169,0.00016986,2]
[361739498,1747741834408,-430.0,0.00016986,2]
[361739500,1747741834417,-430.0,0.00016986,2]
[361739502,1747741834426,-430.0,0.00016986,2]
[361739504,1747741834435,-430.0,0.00016986,2]
[361739506,1747741834445,-430.0,0.00016986,2]
[361739508,1747741834454,-430.0,0.00016986,2]
[361739510,1747741834463,-214.5181614,0.00016986,2]
[361739511,1747741834473,-430.0,0.00016986,2]
[361739512,1747741834482,-430.0,0.00016986,2]
[361739513,1747741834491,-430.0,0.00016986,2]
[361739515,1747741834501,-430.0,0.00016986,2]
[361739517,1747741834511,-1096.01,0.00016986,2]
[361739526,1747741834700,-1304.94,0.00016986,2]
[361739527,1747741834711,-2697.58,0.00016986,2]
[361739528,1747741834721,-491.7,0.00016986,2]
[361739529,1747741834731,-431.68,0.00016986,2]
[361739530,1747741834740,-430.0,0.00016986,2]
[361739531,1747741834750,-430.0,0.00016986,2]
[361739532,1747741834759,-200.0,0.00016986,2]
[361739533,1747741834768,-1026.35,0.00016986,2]
[361739534,1747741834778,-489.73,0.00016986,2]
[361739535,1747741834787,-614.69,0.00016986,2]
[361739536,1747741834796,-430.0,0.00016986,2]
[361739537,1747741834806,-1052.22,0.00016986,2]
[361739538,1747741834815,-430.0,0.00016986,2]
[361739539,1747741834825,-948.04,0.00016986,2]
[361739540,1747741834835,-430.0,0.00016986,2]
[361739541,1747741834844,-537.58,0.00016986,2]
[361739542,1747741834854,-430.0,0.00016986,2]
[361739543,1747741834864,-772.52,0.00016986,2]
[361739544,1747741834873,-173.59158803,0.00016986,2]
[361739545,1747741834882,-430.0,0.00016986,2]
[361739546,1747741834892,-430.0,0.00016986,2]
[361739547,1747741834901,-1552.53,0.00016986,2]
[361739548,1747741834911,-430.0,0.00016986,2]
[361739549,1747741834921,-467.25,0.00016986,2]
[361739550,1747741834930,-430.0,0.00016986,2]
[361739551,1747741834940,-472.64,0.00016986,2]
[361739552,1747741834950,-430.0,0.00016986,2]
[361739553,1747741834960,-430.0,0.00016986,2]
[361739554,1747741834969,-2951.51,0.00016986,2]
[361739555,1747741834979,-430.0,0.00016986,2]
[361739556,1747741834989,-430.0,0.00016986,2]
[361739557,1747741834998,-1044.44,0.00016986,2]
[361739558,1747741835008,-825.63,0.00016986,2]
[361739559,1747741835017,-430.0,0.00016986,2]
[361739560,1747741835027,-430.0,0.00016986,2]
[361739561,1747741835039,-430.0,0.00016986,2]
[361739562,1747741835049,-430.0,0.00016986,2]
[361739563,1747741835058,-634.64,0.00016986,2]
[361739564,1747741835067,-430.0,0.00016986,2]
[361739565,1747741835078,-513.09,0.00016986,2]
[361739566,1747741835087,-430.0,0.00016986,2]
[361739567,1747741835097,-849.91,0.00016986,2]
[361739568,1747741835106,-3854.45,0.00016986,2]
[361739569,1747741835118,-180.0,0.00016986,2]
[361739570,1747741835128,-1291.35,0.00016986,2]
[361739571,1747741835137,-430.0,0.00016986,2]
[361739572,1747741835147,-574.37,0.00016986,2]
[361739573,1747741835156,-430.0,0.00016986,2]
[361739574,1747741835165,-722.59,0.00016986,2]
[361739575,1747741835175,-430.0,0.00016986,2]
[361739576,1747741835184,-430.0,0.00016986,2]
[361739577,1747741835193,-430.0,0.00016986,2]
[361739578,1747741835203,-585.94,0.00016986,2]
[361739579,1747741835212,-480.71,0.00016986,2]
[361739580,1747741835221,-430.0,0.00016986,2]
[361739581,1747741835231,-430.0,0.00016986,2]
[361739582,1747741835240,-369.10337576,0.00017206,2]
[361739583,1747741835250,-10696.09944434,0.0001721,2]
[361739584,1747741835260,-160.0,0.0001722,2]
[361739585,1747741835270,-160.0,0.0001722,2]
[361739586,1747741835281,-160.0,0.0001722,2]
[361739587,1747741835292,-12636.50182523,0.0001722,2]
[361739588,1747741835301,-160.0,0.0001722,2]
[361739589,1747741835312,-160.0,0.0001722,2]
[361739590,1747741835324,-160.0,0.0001722,2]
[361739591,1747741835334,-160.0,0.0001722,2]
[361739592,1747741835345,-422.65292303,0.0001722,2]
[361739593,1747741835355,-160.0,0.0001722,2]
[361739594,1747741835364,-212.38718278,0.0001722,2]
[361739595,1747741835373,-420.0,0.00017256,2]
[361739596,1747741835383,-420.0,0.00017256,2]
[361739597,1747741835392,-430.0,0.0001726,2]
[361739598,1747741835402,-430.0,0.0001726,2]
[361739599,1747741835413,-430.0,0.0001726,2]
[361739600,1747741835424,-430.0,0.0001726,2]
[361739601,1747741835434,-430.0,0.0001726,2]
[361739602,1747741835446,-430.0,0.0001726,2]
[361739603,1747741835456,-430.0,0.0001726,2]
[361739604,1747741835467,-430.0,0.0001726,2]
[361739605,1747741835479,-430.0,0.0001726,2]
[361739606,1747741835489,-430.0,0.0001726,2]
[361739607,1747741835498,-1096.01,0.0001726,2]
[361739608,1747741835507,-1304.94,0.0001726,2]
[361739609,1747741835517,-2697.58,0.0001726,2]
[361739610,1747741835526,-491.7,0.0001726,2]
[361739611,1747741835536,-431.68,0.0001726,2]
[361739612,1747741835546,-430.0,0.0001726,2]
[361739613,1747741835555,-430.0,0.0001726,2]
[361739614,1747741835564,-1026.35,0.0001726,2]
[361739615,1747741835573,-489.73,0.0001726,2]
[361739616,1747741835583,-614.69,0.0001726,2]
[361739617,1747741835592,-430.0,0.0001726,2]
[361739618,1747741835601,-1052.22,0.0001726,2]
[361739619,1747741835610,-402.35230984,0.0001726,2]
[361739620,1747741835620,-948.04,0.0001726,2]
[361739621,1747741835630,-430.0,0.0001726,2]
[361739622,1747741835640,-537.58,0.0001726,2]
[361739623,1747741835650,-430.0,0.0001726,2]
[361739624,1747741835662,-772.52,0.0001726,2]
[361739625,1747741835672,-430.0,0.0001726,2]
[361739626,1747741835683,-430.0,0.0001726,2]
[361739627,1747741835696,-1552.53,0.0001726,2]
[361739628,1747741835708,-430.0,0.0001726,2]
[361739629,1747741835719,-467.25,0.0001726,2]
[361739630,1747741835729,-430.0,0.0001726,2]
[361739631,1747741835739,-472.64,0.0001726,2]
[361739632,1747741835749,-430.0,0.0001726,2]
[361739633,1747741835762,-430.0,0.0001726,2]
[361739634,1747741835773,-2951.51,0.0001726,2]
[361739635,1747741835784,-430.0,0.0001726,2]
[361739636,1747741835795,-430.0,0.0001726,2]
[361739637,1747741835804,-1044.44,0.0001726,2]
[361739638,1747741835813,-825.63,0.0001726,2]
[361739639,1747741835824,-430.0,0.0001726,2]
[361739640,1747741835833,-430.0,0.0001726,2]
[361739641,1747741835843,-430.0,0.0001726,2]
[361739642,1747741835852,-430.0,0.0001726,2]
[361739643,1747741835861,-634.64,0.0001726,2]
[361739644,1747741835870,-430.0,0.0001726,2]
[361739645,1747741835880,-513.09,0.0001726,2]
[361739646,1747741835890,-430.0,0.0001726,2]
[361739647,1747741835899,-849.91,0.0001726,2]
[361739648,1747741835908,-3854.45,0.0001726,2]
[361739649,1747741835919,-1291.35,0.0001726,2]
[361739650,1747741835929,-430.0,0.0001726,2]
[361739651,1747741835939,-574.37,0.0001726,2]
[361739652,1747741835949,-430.0,0.0001726,2]
[361739653,1747741835958,-722.59,0.0001726,2]
[361739654,1747741835969,-430.0,0.0001726,2]
[361739655,1747741835979,-430.0,0.0001726,2]
[361739656,1747741835989,-430.0,0.0001726,2]
[361739657,1747741835999,-585.94,0.0001726,2]
[361739658,1747741836011,-480.71,0.0001726,2]
[361739659,1747741836022,-430.0,0.0001726,2]
[361739660,1747741836043,-430.0,0.0001726,2]
[361739661,1747741836072,-500.0,0.00017374,2]
[361739662,1747741836087,-302.36599431,0.0001738,2]
[361739663,1747741836098,-500.0,0.00017418,2]
[361739664,1747741836108,-520.16409903,0.00017418,2]
[361739665,1747741836118,-500.26497082,0.0001742,2]
[361739666,1747741836130,-10696.09944434,0.00017521,2]
[361739667,1747741836139,-430.0,0.00017534,2]
[361739668,1747741836148,-430.0,0.00017534,2]
[361739669,1747741836158,-430.0,0.00017534,2]
[361739670,1747741836167,-430.0,0.00017534,2]
[361739671,1747741836176,-430.0,0.00017534,2]
[361739672,1747741836187,-430.0,0.00017534,2]
[361739673,1747741836197,-430.0,0.00017534,2]
[361739674,1747741836207,-430.0,0.00017534,2]
[361739675,1747741836219,-430.0,0.00017534,2]
[361739676,1747741836228,-430.0,0.00017534,2]
[361739677,1747741836238,-1096.01,0.00017534,2]
[361739678,1747741836247,-1304.94,0.00017534,2]
[361739679,1747741836260,-2697.58,0.00017534,2]
[361739680,1747741836269,-491.7,0.00017534,2]
[361739681,1747741836278,-431.68,0.00017534,2]
[361739682,1747741836287,-430.0,0.00017534,2]
[361739683,1747741836297,-430.0,0.00017534,2]
[361739684,1747741836306,-1026.35,0.00017534,2]
[361739685,1747741836315,-489.73,0.00017534,2]
[361739686,1747741836325,-614.69,0.00017534,2]
[361739687,1747741836333,-430.0,0.00017534,2]
[361739688,1747741836343,-1052.22,0.00017534,2]
[361739689,1747741836353,-948.04,0.00017534,2]
[361739690,1747741836362,-430.0,0.00017534,2]
[361739691,1747741836372,-430.0,0.00017534,2]
[361739692,1747741836382,-537.58,0.00017534,2]
[361739693,1747741836392,-772.52,0.00017534,2]
[361739694,1747741836401,-430.0,0.00017534,2]
[361739695,1747741836412,-430.0,0.00017534,2]
[361739696,1747741836421,-1552.53,0.00017534,2]
[361739697,1747741836431,-430.0,0.00017534,2]
[361739698,1747741836440,-467.25,0.00017534,2]
[361739699,1747741836450,-430.0,0.00017534,2]
[361739700,1747741836460,-472.64,0.00017534,2]
[361739701,1747741836469,-430.0,0.00017534,2]
[361739702,1747741836479,-430.0,0.00017534,2]
[361739703,1747741836490,-2951.51,0.00017534,2]
[361739704,1747741836500,-430.0,0.00017534,2]
[361739705,1747741836510,-430.0,0.00017534,2]
[361739706,1747741836523,-1044.44,0.00017534,2]
[361739707,1747741836533,-825.63,0.00017534,2]
[361739708,1747741836543,-430.0,0.00017534,2]
[361739709,1747741836553,-430.0,0.00017534,2]
[361739710,1747741836562,-278.61,0.00017534,2]
[361739711,1747741836573,-430.0,0.00017534,2]
[361739712,1747741836583,-634.64,0.00017534,2]
[361739713,1747741836593,-430.0,0.00017534,2]
[361739714,1747741836605,-513.09,0.00017534,2]
[361739715,1747741836615,-430.0,0.00017534,2]
[361739716,1747741836626,-849.91,0.00017534,2]
[361739717,1747741836636,-3854.45,0.00017534,2]
[361739718,1747741836646,-1291.35,0.00017534,2]
[361739719,1747741836656,-430.0,0.00017534,2]
[361739720,1747741836667,-574.37,0.00017534,2]
[361739721,1747741836677,-430.0,0.00017534,2]
[361739722,1747741836687,-722.59,0.00017534,2]
[361739723,1747741836696,-430.0,0.00017534,2]
[361739724,1747741836706,-430.0,0.00017534,2]
[361739725,1747741836717,-430.0,0.00017534,2]
[361739726,1747741836728,-585.94,0.00017534,2]
[361739727,1747741836737,-480.71,0.00017534,2]
[361739728,1747741836746,-334.66683958,0.00017534,2]
[361739729,1747741836756,-430.0,0.00017534,2]
[361739730,1747741836765,-547.0,0.00017704,2]
[361739731,1747741836774,-707.0,0.00017704,2]
[361739732,1747741836784,-2235.0,0.00017704,2]
[361739733,1747741836793,-404.0,0.00017704,2]
[361739734,1747741836802,-491.8695912,0.00017772,2]
[361739735,1747741836812,-500.0,0.00017772,2]
[361739736,1747741836821,-500.0,0.00017776,2]
[361739737,1747741836831,-307.80396048,0.00017808,2]
[361739738,1747741836840,-340.0,0.00017808,2]
[361739739,1747741836849,-430.0,0.00017808,2]
[361739740,1747741836859,-430.0,0.00017808,2]
[361739741,1747741836869,-570.44,0.00017808,2]
[361739742,1747741836879,-430.0,0.00017808,2]
[361739743,1747741836889,-430.0,0.00017808,2]
[361739744,1747741836898,-430.0,0.00017808,2]
[361739745,1747741836908,-430.0,0.00017808,2]
[361739746,1747741836918,-430.0,0.00017808,2]
[361739747,1747741836928,-1096.01,0.00017808,2]
[361739748,1747741836938,-1304.94,0.00017808,2]
[361739749,1747741836949,-2697.58,0.00017808,2]
[361739750,1747741836959,-491.7,0.00017808,2]
[361739751,1747741836968,-431.68,0.00017808,2]
[361739752,1747741836978,-430.0,0.00017808,2]
[361739753,1747741836987,-430.0,0.00017808,2]
[361739754,1747741836997,-1026.35,0.00017808,2]
[361739755,1747741837008,-489.73,0.00017808,2]
[361739756,1747741837018,-614.69,0.00017808,2]
[361739757,1747741837027,-430.0,0.00017808,2]
[361739758,1747741837039,-1052.22,0.00017808,2]
[361739759,1747741837048,-948.04,0.00017808,2]
[361739760,1747741837058,-430.0,0.00017808,2]
[361739761,1747741837067,-430.0,0.00017808,2]
[361739762,1747741837078,-537.58,0.00017808,2]
[361739763,1747741837088,-772.52,0.00017808,2]
[361739764,1747741837097,-430.0,0.00017808,2]
[361739765,1747741837109,-430.0,0.00017808,2]
[361739766,1747741837118,-1552.53,0.00017808,2]
[361739767,1747741837128,-430.0,0.00017808,2]
[361739768,1747741837138,-467.25,0.00017808,2]
[361739769,1747741837149,-430.0,0.00017808,2]
[361739770,1747741837159,-472.64,0.00017808,2]
[361739771,1747741837169,-430.0,0.00017808,2]
[361739772,1747741837178,-430.0,0.00017808,2]
[361739773,1747741837188,-2951.51,0.00017808,2]
[361739774,1747741837198,-430.0,0.00017808,2]
[361739775,1747741837211,-430.0,0.00017808,2]
[361739776,1747741837220,-1044.44,0.00017808,2]
[361739777,1747741837229,-825.63,0.00017808,2]
[361739778,1747741837239,-430.0,0.00017808,2]
[361739779,1747741837248,-430.0,0.00017808,2]
[361739780,1747741837257,-430.0,0.00017808,2]
[361739781,1747741837266,-634.64,0.00017808,2]
[361739782,1747741837276,-430.0,0.00017808,2]
[361739783,1747741837285,-513.09,0.00017808,2]
[361739784,1747741837295,-430.0,0.00017808,2]
[361739785,1747741837305,-849.91,0.00017808,2]
[361739786,1747741837315,-3854.45,0.00017808,2]
[361739787,1747741837325,-1291.35,0.00017808,2]
[361739788,1747741837335,-430.0,0.00017808,2]
[361739789,1747741837344,-574.37,0.00017808,2]
[361739790,1747741837354,-430.0,0.00017808,2]
[361739791,1747741837364,-722.59,0.00017808,2]
[361739792,1747741837373,-430.0,0.00017808,2]
[361739793,1747741837384,-430.0,0.00017808,2]
[361739794,1747741837393,-430.0,0.00017808,2]
[361739795,1747741837402,-585.94,0.00017808,2]
[361739796,1747741837412,-480.71,0.00017808,2]
[361739797,1747741837421,-430.0,0.00017808,2]
[361739798,1747741837431,-500.0,0.00017828,2]
[361739799,1747741837440,-500.0,0.00017828,2]
[361739800,1747741837450,-10696.09944434,0.00017831,2]
[361739801,1747741837459,-500.0,0.00017881,2]
[361739802,1747741837471,-250.0,0.0001792,2]
[361739803,1747741837481,-1000.0,0.00017922,2]
[361739804,1747741837490,-500.0,0.00017975,2]
[361739805,1747741837499,-151.0,0.00018,2]
[361739806,1747741837509,-2000.0,0.00018,2]
[361739807,1747741837518,-2000.0,0.00018,2]
[361739808,1747741837528,-2000.0,0.00018,2]
[361739809,1747741837538,-2000.0,0.00018,2]
[361739810,1747741837548,-2000.0,0.00018,2]
[361739811,1747741837558,-151.0,0.00018,2]
[361739812,1747741837568,-2000.0,0.00018,2]
[361739813,1747741837579,-710.0,0.00018,2]
[361739814,1747741837590,-151.0,0.00018,2]
[361739815,1747741837600,-349.78,0.00018072,3]
[361739816,1747741837610,-430.0,0.00018082,2]
[361739817,1747741837619,-430.0,0.00018082,2]
[361739818,1747741837631,-222.48,0.00018082,2]
[361739819,1747741837641,-430.0,0.00018082,2]
[361739820,1747741837651,-430.0,0.00018082,2]
[361739821,1747741837660,-494.55471127,0.00018082,2]
[361739822,1747741837670,-430.0,0.00018082,2]
[361739823,1747741837680,-1096.01,0.00018082,2]
[361739824,1747741837690,-1304.94,0.00018082,2]
[361739825,1747741837702,-2697.58,0.00018082,2]
[361739826,1747741837713,-491.7,0.00018082,2]
[361739827,1747741837722,-431.68,0.00018082,2]
[361739828,1747741837732,-430.0,0.00018082,2]
[361739829,1747741837742,-430.0,0.00018082,2]
[361739830,1747741837752,-1026.35,0.00018082,2]
[361739831,1747741837762,-489.73,0.00018082,2]
[361739832,1747741837773,-614.69,0.00018082,2]
[361739833,1747741837784,-430.0,0.00018082,2]
[361739834,1747741837793,-1052.22,0.00018082,2]
[361739835,1747741837805,-948.04,0.00018082,2]
[361739836,1747741837820,-430.0,0.00018082,2]
[361739837,1747741837832,-430.0,0.00018082,2]
[361739838,1747741837842,-537.58,0.00018082,2]
[361739839,1747741837852,-772.52,0.00018082,2]
[361739840,1747741837862,-430.0,0.00018082,2]
[361739842,1747741837871,-430.0,0.00018082,2]
[361739844,1747741837880,-1552.53,0.00018082,2]
[361739846,1747741837891,-430.0,0.00018082,2]
[361739847,1747741837900,-467.25,0.00018082,2]
[361739848,1747741837911,-430.0,0.00018082,2]
[361739850,1747741837921,-472.64,0.00018082,2]
[361739851,1747741837930,-430.0,0.00018082,2]
[361739852,1747741837939,-430.0,0.00018082,2]
[361739854,1747741837948,-2951.51,0.00018082,2]
[361739855,1747741837958,-430.0,0.00018082,2]
[361739856,1747741837967,-430.0,0.00018082,2]
[361739857,1747741837977,-1044.44,0.00018082,2]
[361739858,1747741837987,-825.63,0.00018082,2]
[361739859,1747741837996,-430.0,0.00018082,2]
[361739860,1747741838006,-430.0,0.00018082,2]
[361739861,1747741838016,-430.0,0.00018082,2]
[361739863,1747741838025,-634.64,0.00018082,2]
[361739865,1747741838037,-430.0,0.00018082,2]
[361739866,1747741838048,-513.09,0.00018082,2]
[361739867,1747741838058,-430.0,0.00018082,2]
[361739868,1747741838068,-849.91,0.00018082,2]
[361739870,1747741838077,-3854.45,0.00018082,2]